{"text_format":"3","workbook":"xlsx","n_sheets":1,"sheets":["Личный бюджет на месяц"],"read":"whole","date_system":"1900"}

{"sheet":"Личный бюджет на месяц","index":0,"n_rows":62,"n_cols":10,"rows_kept":62,"merged":[[0,1,0,9],[2,1,4,1],[2,2,2,3],[2,7,2,8],[3,2,3,3],[3,7,3,8],[4,2,4,3],[4,6,4,8],[5,1,7,1],[5,2,5,3],[5,7,5,8],[6,2,6,3],[6,7,6,8],[7,2,7,3],[7,6,7,8],[20,6,20,9],[21,1,21,4],[29,6,29,9],[31,1,31,4],[36,6,36,9],[38,1,38,4],[42,6,42,9],[44,1,44,4],[48,6,48,9],[52,1,52,4],[55,6,55,9]]}
[null,"Личный бюджет на месяц"]
[]
[null,"ПЛАНОВЫЙ МЕСЯЧНЫЙ ДОХОД","Доход 1",null,{"v":2500,"d":"2,500 ₽"},null,"ИТОГОВЫЕ ПЛАНОВЫЕ РАСХОДЫ ","(плановый доход минус расходы)",null,{"$f":"SUM(C21,C31,C38,C44,C52,C62,H20,H29,H36,H42,H48,H55)","v":{"v":2060,"d":"2,060 ₽"}}]
[null,null,"Дополнительный доход",null,{"v":500,"d":"500 ₽"},null,"ИТОГОВЫЕ ФАКТИЧЕСКИЕ РАСХОДЫ ","(фактический доход минус расходы)",null,{"$f":"SUM(D21,D31,D38,D44,D52,D62,I20,I29,I36,I42,I48,I55)","v":{"v":2040,"d":"2,040 ₽"}}]
[null,null,"Итоговый месячный доход",null,{"$f":"SUM(E3:E4)","v":{"v":3000,"d":"3,000 ₽"}},null,"Итоговая разница расходов",null,null,{"$f":"SUM(E21,E31,E38,E44,E52,E62,J20,J29,J36,J42,J48,J55)","v":{"v":20,"d":"20 ₽"}}]
[null,"ФАКТИЧЕСКИЙ МЕСЯЧНЫЙ ДОХОД","Доход 1",null,{"v":2500,"d":"2,500 ₽"},null,"ПЛАНОВЫЙ ОСТАТОК","(плановый доход минус расходы)",null,{"$f":"E5-J3","v":{"v":940,"d":"940 ₽"}}]
[null,null,"Дополнительный доход",null,{"v":500,"d":"500 ₽"},null,"ФАКТИЧЕСКИЙ ОСТАТОК","(фактический доход минус расходы)",null,{"$f":"E8-J4","v":{"v":960,"d":"960 ₽"}}]
[null,null,"Итоговый месячный доход",null,{"$f":"SUM(E6:E7)","v":{"v":3000,"d":"3,000 ₽"}},null,"РАЗНИЦА ОСТАТКОВ (фактический минус плановый)",null,null,{"$f":"J7-J6","v":{"v":20,"d":"20 ₽"}}]
[]
[null,"ЖИЛЬЕ","Плановые затраты","Фактические затраты","Разница",null,"РАЗВЛЕЧЕНИЯ","Плановые затраты","Фактические затраты","Разница"]
[null,"Ипотека или аренда",{"v":1500,"d":"1,500 ₽"},{"v":1400,"d":"1,400 ₽"},{"$f":"Жилье[[#This Row],[Плановые затраты]]-Жилье[[#This Row],[Фактические затраты]]","v":{"v":100,"d":"100 ₽"}},null,"Видео",{"v":0,"d":"0 ₽"},{"v":50,"d":"50 ₽"},{"$f":"Развлечения[[#This Row],[Плановые затраты]]-Развлечения[[#This Row],[Фактические затраты]]","v":{"v":-50,"d":"-50 ₽"}}]
[null,"Телефон",{"v":60,"d":"60 ₽"},{"v":100,"d":"100 ₽"},{"$f":"Жилье[[#This Row],[Плановые затраты]]-Жилье[[#This Row],[Фактические затраты]]","v":{"v":-40,"d":"-40 ₽"}},null,"Музыка",null,null,{"$f":"Развлечения[[#This Row],[Плановые затраты]]-Развлечения[[#This Row],[Фактические затраты]]","v":{"v":0,"d":"0 ₽"}}]
[null,"Электричество",{"v":50,"d":"50 ₽"},{"v":60,"d":"60 ₽"},{"$f":"Жилье[[#This Row],[Плановые затраты]]-Жилье[[#This Row],[Фактические затраты]]","v":{"v":-10,"d":"-10 ₽"}},null,"Кино",null,null,{"$f":"Развлечения[[#This Row],[Плановые затраты]]-Развлечения[[#This Row],[Фактические затраты]]","v":{"v":0,"d":"0 ₽"}}]
[null,"Газ",{"v":200,"d":"200 ₽"},{"v":180,"d":"180 ₽"},{"$f":"Жилье[[#This Row],[Плановые затраты]]-Жилье[[#This Row],[Фактические затраты]]","v":{"v":20,"d":"20 ₽"}},null,"Концерты",null,null,{"$f":"Развлечения[[#This Row],[Плановые затраты]]-Развлечения[[#This Row],[Фактические затраты]]","v":{"v":0,"d":"0 ₽"}}]
[null,"Водоснабжение и канализация",null,null,{"$f":"Жилье[[#This Row],[Плановые затраты]]-Жилье[[#This Row],[Фактические затраты]]","v":{"v":0,"d":"0 ₽"}},null,"Спортивные мероприятия",null,null,{"$f":"Развлечения[[#This Row],[Плановые затраты]]-Развлечения[[#This Row],[Фактические затраты]]","v":{"v":0,"d":"0 ₽"}}]
[null,"Кабельное ТВ",null,null,{"$f":"Жилье[[#This Row],[Плановые затраты]]-Жилье[[#This Row],[Фактические затраты]]","v":{"v":0,"d":"0 ₽"}},null,"Театр",null,null,{"$f":"Развлечения[[#This Row],[Плановые затраты]]-Развлечения[[#This Row],[Фактические затраты]]","v":{"v":0,"d":"0 ₽"}}]
[null,"Вывоз мусора",null,null,{"$f":"Жилье[[#This Row],[Плановые затраты]]-Жилье[[#This Row],[Фактические затраты]]","v":{"v":0,"d":"0 ₽"}},null,"Другое",null,null,{"$f":"Развлечения[[#This Row],[Плановые затраты]]-Развлечения[[#This Row],[Фактические затраты]]","v":{"v":0,"d":"0 ₽"}}]
[null,"Ремонт или техническое обслуживание",null,null,{"$f":"Жилье[[#This Row],[Плановые затраты]]-Жилье[[#This Row],[Фактические затраты]]","v":{"v":0,"d":"0 ₽"}},null,"Другое",null,null,{"$f":"Развлечения[[#This Row],[Плановые затраты]]-Развлечения[[#This Row],[Фактические затраты]]","v":{"v":0,"d":"0 ₽"}}]
[null,"Материалы",null,null,{"$f":"Жилье[[#This Row],[Плановые затраты]]-Жилье[[#This Row],[Фактические затраты]]","v":{"v":0,"d":"0 ₽"}},null,"Другое",null,null,{"$f":"Развлечения[[#This Row],[Плановые затраты]]-Развлечения[[#This Row],[Фактические затраты]]","v":{"v":0,"d":"0 ₽"}}]
[null,"Другое",null,null,{"$f":"Жилье[[#This Row],[Плановые затраты]]-Жилье[[#This Row],[Фактические затраты]]","v":{"v":0,"d":"0 ₽"}},null,"Итог",{"$f":"SUBTOTAL(109,Развлечения[Плановые затраты])","v":{"v":0,"d":"0 ₽"}},{"$f":"SUBTOTAL(109,Развлечения[Фактические затраты])","v":{"v":50,"d":"50 ₽"}},{"$f":"SUBTOTAL(109,Развлечения[Разница])","v":{"v":-50,"d":"-50 ₽"}}]
[null,"Итог",{"$f":"SUBTOTAL(109,Жилье[Плановые затраты])","v":{"v":1810,"d":"1,810 ₽"}},{"$f":"SUBTOTAL(109,Жилье[Фактические затраты])","v":{"v":1740,"d":"1,740 ₽"}},{"$f":"SUBTOTAL(109,Жилье[Разница])","v":{"v":70,"d":"70 ₽"}}]
[{"$nulls":6},"КРЕДИТЫ","Плановые затраты","Фактические затраты","Разница"]
[null,"ТРАНСПОРТ","Плановые затраты","Фактические затраты","Разница",null,"Личные накопления",null,null,{"$f":"Кредиты[[#This Row],[Плановые затраты]]-Кредиты[[#This Row],[Фактические затраты]]","v":{"v":0,"d":"0 ₽"}}]
[null,"Расходы на автомобиль",{"v":250,"d":"250 ₽"},{"v":250,"d":"250 ₽"},{"$f":"Транспорт[[#This Row],[Плановые затраты]]-Транспорт[[#This Row],[Фактические затраты]]","v":{"v":0,"d":"0 ₽"}},null,"На учебу",null,null,{"$f":"Кредиты[[#This Row],[Плановые затраты]]-Кредиты[[#This Row],[Фактические затраты]]","v":{"v":0,"d":"0 ₽"}}]
[null,"Проезд на автобусе/такси",null,null,{"$f":"Транспорт[[#This Row],[Плановые затраты]]-Транспорт[[#This Row],[Фактические затраты]]","v":{"v":0,"d":"0 ₽"}},null,"Кредитная карта",null,null,{"$f":"Кредиты[[#This Row],[Плановые затраты]]-Кредиты[[#This Row],[Фактические затраты]]","v":{"v":0,"d":"0 ₽"}}]
[null,"Страхование",null,null,{"$f":"Транспорт[[#This Row],[Плановые затраты]]-Транспорт[[#This Row],[Фактические затраты]]","v":{"v":0,"d":"0 ₽"}},null,"Кредитная карта",null,null,{"$f":"Кредиты[[#This Row],[Плановые затраты]]-Кредиты[[#This Row],[Фактические затраты]]","v":{"v":0,"d":"0 ₽"}}]
[null,"Лицензирование",null,null,{"$f":"Транспорт[[#This Row],[Плановые затраты]]-Транспорт[[#This Row],[Фактические затраты]]","v":{"v":0,"d":"0 ₽"}},null,"Кредитная карта",null,null,{"$f":"Кредиты[[#This Row],[Плановые затраты]]-Кредиты[[#This Row],[Фактические затраты]]","v":{"v":0,"d":"0 ₽"}}]
[null,"Топливо",null,null,{"$f":"Транспорт[[#This Row],[Плановые затраты]]-Транспорт[[#This Row],[Фактические затраты]]","v":{"v":0,"d":"0 ₽"}},null,"Другое",null,null,{"$f":"Кредиты[[#This Row],[Плановые затраты]]-Кредиты[[#This Row],[Фактические затраты]]","v":{"v":0,"d":"0 ₽"}}]
[null,"Обслуживание",null,null,{"$f":"Транспорт[[#This Row],[Плановые затраты]]-Транспорт[[#This Row],[Фактические затраты]]","v":{"v":0,"d":"0 ₽"}},null,"Итог",{"$f":"SUBTOTAL(109,Кредиты[Плановые затраты])","v":{"v":0,"d":"0 ₽"}},{"$f":"SUBTOTAL(109,Кредиты[Фактические затраты])","v":{"v":0,"d":"0 ₽"}},{"$f":"SUBTOTAL(109,Кредиты[Разница])","v":{"v":0,"d":"0 ₽"}}]
[null,"Другое",null,null,{"$f":"Транспорт[[#This Row],[Плановые затраты]]-Транспорт[[#This Row],[Фактические затраты]]","v":{"v":0,"d":"0 ₽"}}]
[null,"Итог",{"$f":"SUBTOTAL(109,Транспорт[Плановые затраты])","v":{"v":250,"d":"250 ₽"}},{"$f":"SUBTOTAL(109,Транспорт[Фактические затраты])","v":{"v":250,"d":"250 ₽"}},{"$f":"SUBTOTAL(109,Транспорт[Разница])","v":{"v":0,"d":"0 ₽"}},null,"НАЛОГИ","Плановые затраты","Фактические затраты","Разница"]
[{"$nulls":6},"Федеральные",null,null,{"$f":"Налоги[[#This Row],[Плановые затраты]]-Налоги[[#This Row],[Фактические затраты]]","v":{"v":0,"d":"0 ₽"}}]
[null,"СТРАХОВАНИЕ","Плановые затраты","Фактические затраты","Разница",null,"Уровня штата",null,null,{"$f":"Налоги[[#This Row],[Плановые затраты]]-Налоги[[#This Row],[Фактические затраты]]","v":{"v":0,"d":"0 ₽"}}]
[null,"Дом",null,null,{"$f":"Страхование[[#This Row],[Плановые затраты]]-Страхование[[#This Row],[Фактические затраты]]","v":{"v":0,"d":"0 ₽"}},null,"Местные",null,null,{"$f":"Налоги[[#This Row],[Плановые затраты]]-Налоги[[#This Row],[Фактические затраты]]","v":{"v":0,"d":"0 ₽"}}]
[null,"Здоровье",null,null,{"$f":"Страхование[[#This Row],[Плановые затраты]]-Страхование[[#This Row],[Фактические затраты]]","v":{"v":0,"d":"0 ₽"}},null,"Другое",null,null,{"$f":"Налоги[[#This Row],[Плановые затраты]]-Налоги[[#This Row],[Фактические затраты]]","v":{"v":0,"d":"0 ₽"}}]
[null,"Жизнь",null,null,{"$f":"Страхование[[#This Row],[Плановые затраты]]-Страхование[[#This Row],[Фактические затраты]]","v":{"v":0,"d":"0 ₽"}},null,"Итог",{"$f":"SUBTOTAL(109,Налоги[Плановые затраты])","v":{"v":0,"d":"0 ₽"}},{"$f":"SUBTOTAL(109,Налоги[Фактические затраты])","v":{"v":0,"d":"0 ₽"}},{"$f":"SUBTOTAL(109,Налоги[Разница])","v":{"v":0,"d":"0 ₽"}}]
[null,"Другое",null,null,{"$f":"Страхование[[#This Row],[Плановые затраты]]-Страхование[[#This Row],[Фактические затраты]]","v":{"v":0,"d":"0 ₽"}}]
[null,"Итог",{"$f":"SUBTOTAL(109,Страхование[Плановые затраты])","v":{"v":0,"d":"0 ₽"}},{"$f":"SUBTOTAL(109,Страхование[Фактические затраты])","v":{"v":0,"d":"0 ₽"}},{"$f":"SUBTOTAL(109,Страхование[Разница])","v":{"v":0,"d":"0 ₽"}},null,"СБЕРЕЖЕНИЯ И ИНВЕСТИЦИИ","Плановые затраты","Фактические затраты","Разница"]
[{"$nulls":6},"Пенсионный счет",null,null,{"$f":"СбереженияИнвестиции[[#This Row],[Плановые затраты]]-СбереженияИнвестиции[[#This Row],[Фактические затраты]]","v":{"v":0,"d":"0 ₽"}}]
[null,"ЕДА","Плановые затраты","Фактические затраты","Разница",null,"Инвестиционный счет",null,null,{"$f":"СбереженияИнвестиции[[#This Row],[Плановые затраты]]-СбереженияИнвестиции[[#This Row],[Фактические затраты]]","v":{"v":0,"d":"0 ₽"}}]
[null,"Продовольственные товары",null,null,{"$f":"Еда[[#This Row],[Плановые затраты]]-Еда[[#This Row],[Фактические затраты]]","v":{"v":0,"d":"0 ₽"}},null,"Другое",null,null,{"$f":"СбереженияИнвестиции[[#This Row],[Плановые затраты]]-СбереженияИнвестиции[[#This Row],[Фактические затраты]]","v":{"v":0,"d":"0 ₽"}}]
[null,"Рестораны",null,null,{"$f":"Еда[[#This Row],[Плановые затраты]]-Еда[[#This Row],[Фактические затраты]]","v":{"v":0,"d":"0 ₽"}},null,"Итог",{"$f":"SUBTOTAL(109,СбереженияИнвестиции[Плановые затраты])","v":{"v":0,"d":"0 ₽"}},{"$f":"SUBTOTAL(109,СбереженияИнвестиции[Фактические затраты])","v":{"v":0,"d":"0 ₽"}},{"$f":"SUBTOTAL(109,СбереженияИнвестиции[Разница])","v":{"v":0,"d":"0 ₽"}}]
[null,"Другое",null,null,{"$f":"Еда[[#This Row],[Плановые затраты]]-Еда[[#This Row],[Фактические затраты]]","v":{"v":0,"d":"0 ₽"}}]
[null,"Итог",{"$f":"SUBTOTAL(109,Еда[Плановые затраты])","v":{"v":0,"d":"0 ₽"}},{"$f":"SUBTOTAL(109,Еда[Фактические затраты])","v":{"v":0,"d":"0 ₽"}},{"$f":"SUBTOTAL(109,Еда[Разница])","v":{"v":0,"d":"0 ₽"}},null,"ПОДАРКИ И ПОЖЕРТВОВАНИЯ","Плановые затраты","Фактические затраты","Разница"]
[{"$nulls":6},"Благотворительный взнос 1",null,null,{"$f":"ПодаркиПожертвования[[#This Row],[Плановые затраты]]-ПодаркиПожертвования[[#This Row],[Фактические затраты]]","v":{"v":0,"d":"0 ₽"}}]
[null,"ДОМАШНИЕ ЖИВОТНЫЕ","Плановые затраты","Фактические затраты","Разница",null,"Благотворительный взнос 2",null,null,{"$f":"ПодаркиПожертвования[[#This Row],[Плановые затраты]]-ПодаркиПожертвования[[#This Row],[Фактические затраты]]","v":{"v":0,"d":"0 ₽"}}]
[null,"Еда",null,null,{"$f":"Домашние_животные[[#This Row],[Плановые затраты]]-Домашние_животные[[#This Row],[Фактические затраты]]","v":{"v":0,"d":"0 ₽"}},null,"Благотворительный взнос 3",null,null,{"$f":"ПодаркиПожертвования[[#This Row],[Плановые затраты]]-ПодаркиПожертвования[[#This Row],[Фактические затраты]]","v":{"v":0,"d":"0 ₽"}}]
[null,"Врачи и анализы",null,null,{"$f":"Домашние_животные[[#This Row],[Плановые затраты]]-Домашние_животные[[#This Row],[Фактические затраты]]","v":{"v":0,"d":"0 ₽"}},null,"Итог",{"$f":"SUBTOTAL(109,ПодаркиПожертвования[Плановые затраты])","v":{"v":0,"d":"0 ₽"}},{"$f":"SUBTOTAL(109,ПодаркиПожертвования[Фактические затраты])","v":{"v":0,"d":"0 ₽"}},{"$f":"SUBTOTAL(109,ПодаркиПожертвования[Разница])","v":{"v":0,"d":"0 ₽"}}]
[null,"Уход",null,null,{"$f":"Домашние_животные[[#This Row],[Плановые затраты]]-Домашние_животные[[#This Row],[Фактические затраты]]","v":{"v":0,"d":"0 ₽"}}]
[null,"Игрушки",null,null,{"$f":"Домашние_животные[[#This Row],[Плановые затраты]]-Домашние_животные[[#This Row],[Фактические затраты]]","v":{"v":0,"d":"0 ₽"}},null,"ЮРИДИЧЕСКИЕ РАСХОДЫ","Плановые затраты","Фактические затраты","Разница"]
[null,"Другое",null,null,{"$f":"Домашние_животные[[#This Row],[Плановые затраты]]-Домашние_животные[[#This Row],[Фактические затраты]]","v":{"v":0,"d":"0 ₽"}},null,"Адвокат",null,null,{"$f":"Юридические_расходы[[#This Row],[Плановые затраты]]-Юридические_расходы[[#This Row],[Фактические затраты]]","v":{"v":0,"d":"0 ₽"}}]
[null,"Итог",{"$f":"SUBTOTAL(109,Домашние_животные[Плановые затраты])","v":{"v":0,"d":"0 ₽"}},{"$f":"SUBTOTAL(109,Домашние_животные[Фактические затраты])","v":{"v":0,"d":"0 ₽"}},{"$f":"SUBTOTAL(109,Домашние_животные[Разница])","v":{"v":0,"d":"0 ₽"}},null,"Алименты",null,null,{"$f":"Юридические_расходы[[#This Row],[Плановые затраты]]-Юридические_расходы[[#This Row],[Фактические затраты]]","v":{"v":0,"d":"0 ₽"}}]
[{"$nulls":6},"Оплата залога или платежи по решению суда",null,null,{"$f":"Юридические_расходы[[#This Row],[Плановые затраты]]-Юридические_расходы[[#This Row],[Фактические затраты]]","v":{"v":0,"d":"0 ₽"}}]
[null,"УХОД ЗА СОБОЙ","Плановые затраты","Фактические затраты","Разница",null,"Другое",null,null,{"$f":"Юридические_расходы[[#This Row],[Плановые затраты]]-Юридические_расходы[[#This Row],[Фактические затраты]]","v":{"v":0,"d":"0 ₽"}}]
[null,"Медицина",null,null,{"$f":"УходЗаСобой[[#This Row],[Плановые затраты]]-УходЗаСобой[[#This Row],[Фактические затраты]]","v":{"v":0,"d":"0 ₽"}},null,"Итог",{"$f":"SUBTOTAL(109,Юридические_расходы[Плановые затраты])","v":{"v":0,"d":"0 ₽"}},{"$f":"SUBTOTAL(109,Юридические_расходы[Фактические затраты])","v":{"v":0,"d":"0 ₽"}},{"$f":"SUBTOTAL(109,Юридические_расходы[Разница])","v":{"v":0,"d":"0 ₽"}}]
[null,"Уход за волосами/ногтями",null,null,{"$f":"УходЗаСобой[[#This Row],[Плановые затраты]]-УходЗаСобой[[#This Row],[Фактические затраты]]","v":{"v":0,"d":"0 ₽"}}]
[null,"Одежда",null,null,{"$f":"УходЗаСобой[[#This Row],[Плановые затраты]]-УходЗаСобой[[#This Row],[Фактические затраты]]","v":{"v":0,"d":"0 ₽"}}]
[null,"Химчистка",null,null,{"$f":"УходЗаСобой[[#This Row],[Плановые затраты]]-УходЗаСобой[[#This Row],[Фактические затраты]]","v":{"v":0,"d":"0 ₽"}}]
[null,"Фитнес-клуб",null,null,{"$f":"УходЗаСобой[[#This Row],[Плановые затраты]]-УходЗаСобой[[#This Row],[Фактические затраты]]","v":{"v":0,"d":"0 ₽"}}]
[null,"Сборы организации",null,null,{"$f":"УходЗаСобой[[#This Row],[Плановые затраты]]-УходЗаСобой[[#This Row],[Фактические затраты]]","v":{"v":0,"d":"0 ₽"}}]
[null,"Другое",null,null,{"$f":"УходЗаСобой[[#This Row],[Плановые затраты]]-УходЗаСобой[[#This Row],[Фактические затраты]]","v":{"v":0,"d":"0 ₽"}}]
[null,"Итог",{"$f":"SUBTOTAL(109,УходЗаСобой[Плановые затраты])","v":{"v":0,"d":"0 ₽"}},{"$f":"SUBTOTAL(109,УходЗаСобой[Фактические затраты])","v":{"v":0,"d":"0 ₽"}},{"$f":"SUBTOTAL(109,УходЗаСобой[Разница])","v":{"v":0,"d":"0 ₽"}}]